[Event "Czech Open Rapid G1 2024"]
[Site "Pardubice"]
[Date "2024.07.17"]
[Round "3.15"]
[White "Ocelak, Jakub"]
[Black "Piesik, Piotr"]
[Result "1/2-1/2"]
[Annotator "TA"]
[ECO "A44"]
[WhiteElo "2206"]
[BlackElo "2415"]
[PlyCount "143"]
[EventDate "2024.07.16"]
[EventType "swiss"]
[EventCountry "CZE"]
[SourceTitle "playchess.com"]
[Source "ChessBase"]
[SourceQuality "1"]
[TimeControl "1200+10"]

{[%evp 19,143,70,71,70,98,87,86,45,86,79,84,84,81,90,55,63,80,88,98,85,98,95,81,80,141,70,55,55,71,55,44,48,52,12,12,12,17,8,8,0,0,0,23,0,0,0,0,0,0,0,0,0,0,0,0,0,8,0,8,8,13,13,13,13,13,9,12,9,9,8,9,9,9,9,9,9,9,9,70,8,8,8,9,63,70,70,70,70,70,70,70,70,70,70,70,70,70,70,70,70,70,70,70,70,70,70,70,70,70,70,70,70,70,70,70,70,70,70,70,70,70,70,70,70,70,70]} 1. d4 {[%emt 0:00:04]} c5 {[%emt 0:00:03]} 2. d5 {[%emt 0:00:07]} e5 {[%emt 0:00:01]} 3. e4 {[%emt 0:00:09]} d6 {[%emt 0:00:01]} 4. Nc3 {[%emt 0:00:04]} Be7 {[%emt 0:00:01]} 5. Nf3 {[%emt 0:00:03]} a6 {[%emt 0:00:02]} 6. a4 {[%emt 0:00:02]} Bg4 {[%emt 0:00:01]} 7. h3 {[%emt 0:00:04]} Bxf3 {[%emt 0:00:02] A44: Semi-Benoni.} 8. Qxf3 {[%emt 0:00:01]} Bg5 {[%emt 0:00:01]} 9. Bxg5 {[%emt 0:00:02]} Qxg5 {[%emt 0:00:02]} 10. Qg4 {[%emt 0:00:01]} Qxg4 {[%emt 0:00:31]} 11. hxg4 {[%emt 0:00:02]} Ne7 {[%emt 0:00:08]} 12. Kd2 $146 {[%emt 0:02:15]} ({Predecessor:} 12. f3 Nd7 13. Nd1 b6 14. Ne3 Kd8 15. c3 Kc7 16. Kf2 h6 17. Bd3 Nf8 18. b4 {1-0 Sarana,A (2654)-Piesik,P (2418) Titled Tuesday intern op 4th Aug 10am blitz 2020 (2)}) 12... Nd7 {[%emt 0:00:11]} 13. Nd1 {[%emt 0:01:01]} O-O-O {[%emt 0:01:06]} 14. Ne3 {[%emt 0:01:54]} h5 {[%emt 0:00:36]} 15. Rxh5 {[%emt 0:02:51]} Rxh5 {[%emt 0:00:10]} 16. gxh5 {[%emt 0:00:03]} Nf6 {[%emt 0:00:01]} 17. Bd3 {[%emt 0:00:22]} Nxh5 {[%emt 0:00:11]} 18. Rh1 {[%emt 0:00:21]} g6 {[%emt 0:02:43]} 19. g3 {[%emt 0:02:28]} Rg8 {[%emt 0:01:11]} 20. a5 {[%emt 0:00:30]} Rg7 {[%emt 0:01:14]} 21. c3 {[%emt 0:01:33]} Rh7 {[%emt 0:01:11]} (21... Nf6 $142) 22. b4 {[%emt 0:00:07]} (22. f4 $16 {Black must now prevent Nc4.} exf4 23. gxf4) 22... cxb4 $14 {[%emt 0:00:14]} 23. cxb4 {[%emt 0:00:03]} Nf6 {[%emt 0:00:02]} 24. Rxh7 {[%emt 0:00:46]} Nxh7 {[%emt 0:00:01]} 25. f4 {[%emt 0:00:19]} f6 {[%emt 0:01:04]} 26. b5 {[%emt 0:00:15]} axb5 {[%emt 0:00:06]} 27. Bxb5 {[%emt 0:00:02]} Kd8 {[%emt 0:00:45]} 28. Nc4 {[%emt 0:00:39]} Kc7 {[%emt 0:00:05]} 29. Ke3 {[%emt 0:01:03]} exf4+ {[%emt 0:01:09]} 30. gxf4 {[%emt 0:02:37]} g5 {[%emt 0:00:04]} 31. a6 {[%emt 0:01:05]} bxa6 {[%emt 0:00:01]} 32. Bxa6 {[%emt 0:00:01]} gxf4+ {[%emt 0:00:18]} 33. Kxf4 {[%emt 0:00:06]} Nf8 {[%emt 0:00:02]} 34. Bb5 {[%emt 0:00:17]} Nfg6+ {[%emt 0:00:07]} 35. Ke3 {[%emt 0:00:16]} Ne5 {[%emt 0:00:01]} 36. Nd2 {[%emt 0:00:20]} Kb6 {[%emt 0:00:02]} 37. Be2 {[%emt 0:00:08]} N7g6 {[%emt 0:00:24]} 38. Kd4 {[%emt 0:00:28]} Nf8 {[%emt 0:00:20]} 39. Nf1 {[%emt 0:00:12]} Nfd7 {[%emt 0:00:33]} 40. Ng3 {[%emt 0:00:15]} Kc7 {[%emt 0:00:16]} 41. Nh5 {[%emt 0:00:18]} Kd8 {[%emt 0:00:07]} 42. Bb5 {[%emt 0:00:04]} Ke7 {[%emt 0:00:14]} 43. Bxd7 {[%emt 0:00:03]} Nxd7 {[%emt 0:00:04]} 44. Ke3 {[%emt 0:00:19]} Kf7 {[%emt 0:00:23]} 45. Ng3 {[%emt 0:00:14]} Nc5 {[%emt 0:00:58]} 46. Nf5 {[%emt 0:00:09]} Nb7 {[%emt 0:00:01]} 47. Kf4 $1 {[%emt 0:00:56]} Ke8 {[%emt 0:00:21]} 48. Kg4 {[%emt 0:00:54]} Kd7 {[%emt 0:01:52]} (48... Nc5 $11) 49. Kh5 {[%emt 0:00:24]} ({White should try} 49. Nh6 $1 $14) 49... Nc5 $11 {[%emt 0:00:05]} 50. Ng3 {[%emt 0:00:04]} Nd3 {[%emt 0:02:50]} 51. Kg6 {[%emt 0:00:06]} Ne5+ {[%emt 0:00:02]} 52. Kxf6 {[%emt 0:00:03]} Ng4+ {[%emt 0:00:01]} 53. Kf5 {[%emt 0:00:16]} Ne3+ {[%emt 0:00:07]} 54. Kg6 {[%emt 0:00:10]} Nc4 {[%emt 0:00:06]} 55. Kf6 {[%emt 0:00:33]} Nd2 {[%emt 0:00:08]} 56. Kf5 {[%emt 0:00:04]} Ke7 {[%emt 0:00:06]} 57. Ne2 {[%emt 0:00:26]} Kd7 {[%emt 0:00:25]} 58. Nc3 {[%emt 0:00:02]} Ke7 {[%emt 0:00:02]} 59. Kf4 {[%emt 0:00:09]} Nc4 {[%emt 0:00:05]} 60. Nb5 {[%emt 0:00:06]} Kf6 {[%emt 0:00:13]} 61. Na7 {[%emt 0:01:10]} Nb6 {[%emt 0:00:41]} 62. Nc6 {[%emt 0:00:23]} Nc4 {[%emt 0:00:55]} 63. Kf3 {[%emt 0:00:06]} Kf7 {[%emt 0:01:26]} 64. Ke2 {[%emt 0:00:06]} Ke8 {[%emt 0:00:05]} 65. Kd3 {[%emt 0:00:01]} Nb6 {[%emt 0:00:06]} 66. Nd4 {[%emt 0:00:09]} Nd7 {[%emt 0:00:22]} 67. Nf5 {[%emt 0:00:18]} Ne5+ {[%emt 0:00:09]} 68. Kc3 {[%emt 0:00:10]} Kd7 {[%emt 0:00:01]} 69. Kb4 {[%emt 0:00:12]} Nd3+ {[%emt 0:00:12]} 70. Kb5 {[%emt 0:00:10]} Nf2 {[%emt 0:00:09]} 71. Ng3 {[%emt 0:00:01]} Kc7 {[%emt 0:00:01]} 72. Kc4 {[%emt 0:00:14]} 1/2-1/2

[Event "Czech Open Rapid G1 2024"]
[Site "Pardubice"]
[Date "2024.07.17"]
[Round "3.16"]
[White "Levytskyi, Liubomyr"]
[Black "Jares, Michal"]
[Result "0-1"]
[Annotator "TA"]
[ECO "B12"]
[WhiteElo "1717"]
[BlackElo "2382"]
[PlyCount "34"]
[EventDate "2024.07.16"]
[EventType "swiss"]
[EventCountry "CZE"]
[SourceTitle "playchess.com"]
[Source "ChessBase"]
[SourceQuality "1"]
[TimeControl "1200+10"]

{[%evp 9,34,0,0,0,0,0,37,-22,-23,-37,-22,-29,0,-22,6,4,93,-356,-351,-410,-423,-432,-426,-1018,-1016,-1506,-1487]} 1. e4 {[%emt 0:00:01]} c6 {[%emt 0:00:01]} 2. d4 {[%emt 0:00:01]} d5 {[%emt 0:00:02]} 3. f3 {[%emt 0:00:01]} Qb6 {[%emt 0:00:03]} 4. Nc3 {[%emt 0:00:10]} dxe4 {[%emt 0:00:02]} 5. fxe4 {[%emt 0:00:05]} e5 $1 {[%emt 0:00:02]} 6. Nf3 {[%emt 0:00:28]} exd4 {[%emt 0:00:02]} 7. Nxd4 {[%emt 0:02:20]} Nf6 {[%emt 0:00:02]} 8. Be2 {[%emt 0:01:39]} (8. e5 $1 $14 Ng4 9. e6 Bxe6 10. Bc4 Bxc4 11. Qxg4) 8... Bc5 $11 {[%emt 0:02:01]} 9. Na4 {[%emt 0:01:07]} Qa5+ {[%emt 0:00:21]} 10. c3 {[%emt 0:00:02]} Be7 {[%emt 0:01:11][%cal Oe8g8]} 11. b4 {[%emt 0:01:54]} Qd8 {[%emt 0:00:45][%cal Oe8g8]} 12. O-O {[%emt 0:00:59]} Nxe4 {[%emt 0:04:48] [#]} (12... O-O $11 {keeps the balance.}) 13. Bd3 $2 {[%emt 0:01:10][%mdl 8192] [#] This move loses the game for White.} (13. Bg4 $1 $16 {[%cal Rg4c8] keeps the pressure on. Bxc8 is the strong threat.} O-O 14. Bxc8 Qxc8 15. Nf5) 13... Nxc3 $1 $19 {[%emt 0:01:33][%mdl 512]} 14. Nxc3 {[%emt 0:01:41] And now Bc2 would win.} (14. Nxc6 Nxc6) 14... Qxd4+ {[%emt 0:00:02]} 15. Kh1 {[%emt 0:00:01][%cal Of1f7] Black is clearly winning.} Qxc3 {[%emt 0:00:37]} 16. Rxf7 {[%emt 0:01:23]} (16. Rb1 $142 Qe5 (16... Bxb4 $2 17. Bb2 $17) 17. Re1) 16... Kxf7 {[%emt 0:00:49]} 17. Qf3+ {[%emt 0:00:40]} Bf6 {[%emt 0:01:12] Weighted Error Value: White=1.60/Black=0.28 (precise) .  Loses game:     	White=1     	---        Mistake:       	White=2     	Black=1      Inaccurate:     	White=1     	Black=3      OK:         	White=4     	Black=3      Best:        	---       	Black=2      Brilliant:      	---       	Black=1} 0-1

[Event "Czech Open Rapid G1 2024"]
[Site "Pardubice"]
[Date "2024.07.17"]
[Round "3.17"]
[White "Shilon Rahav, Eliran"]
[Black "Jun, Rudolf"]
[Result "1-0"]
[Annotator "RC"]
[ECO "B23"]
[WhiteElo "2055"]
[BlackElo "2232"]
[PlyCount "119"]
[EventDate "2024.07.16"]
[EventType "swiss"]
[EventCountry "CZE"]
[SourceTitle "playchess.com"]
[Source "ChessBase"]
[SourceQuality "1"]
[TimeControl "1200+10"]

1. e4 {[%emt 0:00:01]} c5 {[%emt 0:00:01]} 2. Nc3 {[%emt 0:00:01]} b6 {[%emt 0:00:02]} 3. g3 {[%emt 0:00:09]} Bb7 {[%emt 0:00:01]} 4. Bg2 {[%emt 0:00:01]} g6 {[%emt 0:00:02]} 5. Nge2 {[%emt 0:00:02]} Bg7 {[%emt 0:00:01]} 6. d4 {[%emt 0:00:01]} cxd4 {[%emt 0:00:02]} 7. Nxd4 {[%emt 0:00:01]} d6 {[%emt 0:00:08]} 8. O-O {[%emt 0:00:03]} Nd7 {[%emt 0:00:07]} 9. Be3 {[%emt 0:00:07]} a6 {[%emt 0:00:06]} 10. f4 {[%emt 0:00:09]} Qc7 {[%emt 0:00:07]} 11. Qd2 {[%emt 0:00:50]} Ngf6 12. Rad1 {[%emt 0:00:00]} O-O {[%emt 0:00:29]} 13. h3 {[%emt 0:00:15]} Nc5 {[%emt 0:00:14]} 14. Nd5 {[%emt 0:00:43]} Nxd5 {[%emt 0:00:02]} 15. exd5 {[%emt 0:00:02]} Nd7 {[%emt 0:00:11]} 16. Qd3 {[%emt 0:00:36]} Rac8 {[%emt 0:00:37]} 17. c3 {[%emt 0:00:23]} Nf6 {[%emt 0:00:11]} 18. Nb3 {[%emt 0:00:20]} b5 {[%emt 0:00:32]} 19. g4 {[%emt 0:00:12]} Ba8 {[%emt 0:02:39]} 20. g5 {[%emt 0:00:23]} Nd7 {[%emt 0:01:44]} 21. h4 {[%emt 0:00:16]} Qc4 {[%emt 0:00:29]} 22. Qd2 {[%emt 0:02:30]} Qa4 {[%emt 0:02:38]} 23. Qc2 {[%emt 0:02:25]} b4 {[%emt 0:00:29]} 24. c4 {[%emt 0:00:13]} Nc5 {[%emt 0:00:57]} 25. Rf2 {[%emt 0:03:29]} Qd7 {[%emt 0:01:39]} 26. Nxc5 {[%emt 0:00:17]} dxc5 {[%emt 0:00:02]} 27. f5 {[%emt 0:00:16]} gxf5 {[%emt 0:02:24]} 28. Rxf5 {[%emt 0:02:56]} e6 {[%emt 0:00:02]} 29. Rff1 {[%emt 0:00:40]} exd5 {[%emt 0:00:26]} 30. cxd5 {[%emt 0:00:02]} Rfe8 {[%emt 0:00:35]} 31. Qf2 {[%emt 0:00:35]} Qg4 {[%emt 0:01:35]} 32. Qxf7+ {[%emt 0:03:05]} Kh8 {[%emt 0:00:01]} 33. Qf4 {[%emt 0:00:33]} Qxf4 {[%emt 0:01:19]} 34. Bxf4 {[%emt 0:00:01]} Bd4+ {[%emt 0:01:03]} 35. Kh2 {[%emt 0:00:51]} Re2 {[%emt 0:00:08]} 36. Kg3 {[%emt 0:00:03]} Kg8 {[%emt 0:02:13]} 37. Bh3 {[%emt 0:00:32]} Rd8 {[%emt 0:01:50]} 38. Bg4 {[%emt 0:00:35]} Re4 {[%emt 0:01:08]} 39. Bf5 {[%emt 0:00:41]} Re2 {[%emt 0:00:04]} 40. Bg4 {[%emt 0:00:52]} Re4 {[%emt 0:00:07]} 41. d6 {[%emt 0:00:19]} Be5 {[%emt 0:00:21]} 42. Bxe5 {[%emt 0:00:26]} Rxe5 43. Rf6 {[%emt 0:00:03]} Re3+ {[%emt 0:00:20]} 44. Kf2 {[%emt 0:00:08]} Re5 {[%emt 0:00:11]} 45. d7 {[%emt 0:00:14]} Kg7 {[%emt 0:00:02]} 46. Re1 {[%emt 0:00:33]} Rxe1 {[%emt 0:00:15]} 47. Kxe1 {[%emt 0:00:02]} h5 {[%emt 0:00:01]} 48. Bf5 {[%emt 0:00:21]} Bd5 {[%emt 0:00:01]} 49. b3 {[%emt 0:00:42]} a5 {[%emt 0:00:03]} 50. Kd2 {[%emt 0:00:05]} a4 {[%emt 0:00:01]} 51. bxa4 {[%emt 0:00:11]} Bxa2 {[%emt 0:00:01]} 52. a5 {[%emt 0:00:07]} c4 {[%emt 0:00:05]} 53. Rc6 {[%emt 0:00:15]} c3+ {[%emt 0:00:45]} 54. Kc2 {[%emt 0:00:06]} Kf7 {[%emt 0:00:02]} 55. a6 {[%emt 0:00:16]} Ke7 {[%emt 0:00:33]} 56. Rc8 {[%emt 0:00:04]} Bd5 {[%emt 0:00:09]} 57. Rxd8 {[%emt 0:00:12]} Kxd8 {[%emt 0:00:02]} 58. a7 {[%emt 0:00:00]} Bc6 {[%emt 0:00:18]} 59. g6 {[%emt 0:00:06]} Ba4+ {[%emt 0:00:02]} 60. Kc1 {[%emt 0:00:05]} 1-0

[Event "Czech Open Rapid G1 2024"]
[Site "Pardubice"]
[Date "2024.07.17"]
[Round "3.18"]
[White "Prokofiev, Valentyn"]
[Black "Setina, Vaclav"]
[Result "1-0"]
[Annotator "RC"]
[ECO "D32"]
[WhiteElo "2337"]
[BlackElo "1984"]
[PlyCount "39"]
[EventDate "2024.07.16"]
[EventType "swiss"]
[EventCountry "CZE"]
[SourceTitle "playchess.com"]
[Source "ChessBase"]
[SourceQuality "1"]
[TimeControl "1200+10"]

1. Nf3 {[%emt 0:00:01]} Nf6 {[%emt 0:00:03]} 2. c4 {[%emt 0:00:01]} c5 {[%emt 0:00:01]} 3. d4 {[%emt 0:00:01]} e6 {[%emt 0:00:06]} 4. Nc3 {[%emt 0:00:02]} d5 {[%emt 0:00:08]} 5. cxd5 {[%emt 0:00:08]} exd5 {[%emt 0:00:01]} 6. dxc5 {[%emt 0:00:11]} Bxc5 {[%emt 0:00:23]} 7. e3 {[%emt 0:00:31]} O-O {[%emt 0:00:21]} 8. Be2 {[%emt 0:00:05]} a6 {[%emt 0:00:02]} 9. O-O {[%emt 0:00:10]} Nc6 {[%emt 0:00:00]} 10. b3 {[%emt 0:00:30]} Bg4 {[%emt 0:02:53]} 11. Bb2 {[%emt 0:00:18]} Qd6 {[%emt 0:00:02]} 12. h3 {[%emt 0:01:07]} Bh5 {[%emt 0:00:07]} 13. Nh4 {[%emt 0:01:47]} Bxe2 {[%emt 0:00:24]} 14. Nxe2 {[%emt 0:00:01]} Ba7 {[%emt 0:01:53]} 15. Nf5 {[%emt 0:00:47]} Qd7 {[%emt 0:00:08]} 16. g4 {[%emt 0:01:36]} h5 {[%emt 0:01:29]} 17. Bxf6 {[%emt 0:00:20]} gxf6 {[%emt 0:00:52]} 18. Nf4 {[%emt 0:00:14]} d4 {[%emt 0:00:35]} 19. Nxh5 {[%emt 0:00:18]} Qe6 {[%emt 0:00:12]} 20. exd4 {[%emt 0:00:18]} 1-0

[Event "Czech Open Rapid G1 2024"]
[Site "Pardubice"]
[Date "2024.07.17"]
[Round "3.19"]
[White "Freisler, Pavel"]
[Black "Karvatskyi, Oleksii"]
[Result "1/2-1/2"]
[Annotator "RC"]
[ECO "E01"]
[WhiteElo "2261"]
[BlackElo "1990"]
[PlyCount "83"]
[EventDate "2024.07.16"]
[EventType "swiss"]
[EventCountry "CZE"]
[SourceTitle "playchess.com"]
[Source "ChessBase"]
[SourceQuality "1"]
[TimeControl "1200+10"]

1. Nf3 {[%emt 0:00:03]} d5 {[%emt 0:00:04]} 2. d4 {[%emt 0:00:02]} Nf6 {[%emt 0:00:21]} 3. c4 {[%emt 0:00:03]} e6 {[%emt 0:00:03]} 4. g3 {[%emt 0:00:04]} Ne4 {[%emt 0:00:01]} 5. Bg2 {[%emt 0:00:24]} f5 {[%emt 0:00:02]} 6. O-O {[%emt 0:01:10]} Be7 {[%emt 0:00:05]} 7. Nbd2 {[%emt 0:00:23]} Nc6 {[%emt 0:00:01]} 8. e3 {[%emt 0:01:28]} h5 {[%emt 0:00:09]} 9. Nxe4 {[%emt 0:00:29]} dxe4 {[%emt 0:00:35]} 10. Ne1 {[%emt 0:01:44]} h4 {[%emt 0:00:18]} 11. f3 {[%emt 0:00:02]} hxg3 {[%emt 0:00:10]} 12. hxg3 {[%emt 0:00:03]} Bd6 {[%emt 0:00:14]} 13. f4 {[%emt 0:01:16]} Qf6 {[%emt 0:00:26]} 14. Bd2 {[%emt 0:01:37]} Qg6 {[%emt 0:01:18]} 15. Kf2 {[%emt 0:00:06]} Bd7 {[%emt 0:00:13]} 16. Nc2 {[%emt 0:00:16]} O-O-O {[%emt 0:00:14]} 17. Qe2 {[%emt 0:00:16]} Rh6 {[%emt 0:01:29]} 18. Rh1 {[%emt 0:00:04]} Rdh8 {[%emt 0:00:02]} 19. Rxh6 {[%emt 0:00:08]} gxh6 {[%emt 0:00:01]} 20. Rh1 {[%emt 0:00:11]} h5 {[%emt 0:00:03]} 21. b4 {[%emt 0:01:06]} Be8 {[%emt 0:00:50]} 22. b5 {[%emt 0:00:34]} Nd8 {[%emt 0:00:02]} 23. Bb4 {[%emt 0:01:06]} Bxb4 {[%emt 0:00:11]} 24. Nxb4 {[%emt 0:00:01]} Rg8 {[%emt 0:00:04]} 25. Rh3 {[%emt 0:00:14]} h4 {[%emt 0:00:02]} 26. a4 {[%emt 0:00:25]} hxg3+ {[%emt 0:00:28]} 27. Ke1 {[%emt 0:00:05]} Nf7 {[%emt 0:00:11]} 28. c5 {[%emt 0:00:28]} Nh6 {[%emt 0:00:11]} 29. c6 {[%emt 0:00:53]} b6 {[%emt 0:00:05]} 30. Nc2 {[%emt 0:01:18]} Nf7 {[%emt 0:00:53]} 31. Na3 {[%emt 0:00:17]} Qg7 {[%emt 0:00:42]} 32. Nc4 {[%emt 0:00:06]} Rh8 {[%emt 0:00:07]} 33. Rxh8 {[%emt 0:00:15]} Qxh8 {[%emt 0:00:01]} 34. a5 {[%emt 0:00:13]} Qh2 {[%emt 0:00:21]} 35. Kf1 {[%emt 0:00:18]} Nd8 {[%emt 0:00:46]} 36. axb6 axb6 {[%emt 0:00:02]} 37. Qa2 {[%emt 0:00:26]} Kb8 {[%emt 0:00:00]} 38. Qa6 {[%emt 0:02:45]} Qh5 {[%emt 0:01:09]} 39. Ke1 {[%emt 0:00:28]} Qh2 {[%emt 0:00:29]} 40. Kf1 {[%emt 0:01:16]} Qh5 {[%emt 0:00:35]} 41. Ke1 {[%emt 0:00:18]} Qh2 {[%emt 0:00:09]} 42. Kf1 {[%emt 0:00:24]} 1/2-1/2

[Event "Czech Open Rapid G1 2024"]
[Site "Pardubice"]
[Date "2024.07.17"]
[Round "3.20"]
[White "Tyshniuk, Roman"]
[Black "Jurek, Josef"]
[Result "0-1"]
[Annotator "RC"]
[ECO "E12"]
[WhiteElo "1903"]
[BlackElo "2200"]
[PlyCount "106"]
[EventDate "2024.07.16"]
[EventType "swiss"]
[EventCountry "CZE"]
[SourceTitle "playchess.com"]
[Source "ChessBase"]
[SourceQuality "1"]
[TimeControl "1200+10"]

1. d4 {[%emt 0:00:02]} Nf6 {[%emt 0:00:05]} 2. c4 {[%emt 0:00:01]} e6 {[%emt 0:00:03]} 3. Nf3 {[%emt 0:00:01]} b6 {[%emt 0:00:08]} 4. a3 {[%emt 0:00:02]} Ba6 {[%emt 0:00:20]} 5. Qb3 {[%emt 0:00:41]} Be7 {[%emt 0:00:43]} 6. Nc3 {[%emt 0:00:03]} d5 {[%emt 0:00:23]} 7. cxd5 {[%emt 0:00:28]} exd5 {[%emt 0:00:04]} 8. Bg5 {[%emt 0:00:17]} c6 {[%emt 0:00:51]} 9. e3 {[%emt 0:00:43]} Bxf1 {[%emt 0:00:10]} 10. Kxf1 {[%emt 0:00:02]} Nbd7 {[%emt 0:00:33]} 11. g3 {[%emt 0:00:11]} O-O {[%emt 0:00:26]} 12. Kg2 {[%emt 0:00:04]} Ne4 {[%emt 0:01:31]} 13. Bxe7 {[%emt 0:00:27]} Qxe7 {[%emt 0:00:04]} 14. Rac1 {[%emt 0:00:38]} Rfe8 {[%emt 0:00:45]} 15. Rc2 {[%emt 0:02:00]} Qd6 {[%emt 0:02:18]} 16. Rhc1 {[%emt 0:02:29]} Nxc3 {[%emt 0:00:16]} 17. Rxc3 {[%emt 0:00:22]} c5 {[%emt 0:00:03]} 18. dxc5 {[%emt 0:00:17]} bxc5 {[%emt 0:00:29]} 19. Rd1 {[%emt 0:00:48]} Nf6 {[%emt 0:00:34]} 20. Qb5 {[%emt 0:01:19]} Ne4 {[%emt 0:01:33]} 21. Rcd3 {[%emt 0:00:57]} Rab8 {[%emt 0:00:16]} 22. Qa4 {[%emt 0:00:01]} Qe7 {[%emt 0:01:04]} 23. Rxd5 {[%emt 0:03:05]} Nxf2 {[%emt 0:02:15]} 24. Re5 {[%emt 0:00:15]} Qxe5 {[%emt 0:00:23]} 25. Nxe5 {[%emt 0:00:04]} Nxd1 {[%emt 0:00:01]} 26. Qxa7 {[%emt 0:03:14]} Rxb2+ {[%emt 0:02:07]} 27. Kg1 {[%emt 0:00:23]} Rf8 {[%emt 0:00:35]} 28. Qxc5 {[%emt 0:00:06]} Nf2 {[%emt 0:00:37]} 29. Qd4 {[%emt 0:02:03]} Nh3+ {[%emt 0:00:24]} 30. Kh1 {[%emt 0:02:14]} Rc2 {[%emt 0:00:23]} 31. Qa4 {[%emt 0:00:20]} Rfc8 {[%emt 0:01:13]} 32. Qd7 {[%emt 0:00:02]} Ng5 {[%emt 0:00:38]} 33. g4 {[%emt 0:01:31]} Rb8 {[%emt 0:01:15]} 34. Qd1 {[%emt 0:00:17]} Rcb2 {[%emt 0:00:06]} 35. Qd5 {[%emt 0:00:19]} Rf2 {[%emt 0:00:51]} 36. Qd3 {[%emt 0:00:09]} h6 {[%emt 0:00:25]} 37. h4 {[%emt 0:00:04]} Ne6 {[%emt 0:00:32]} 38. Kg1 {[%emt 0:00:09]} Ra2 {[%emt 0:00:21]} 39. Qd1 {[%emt 0:00:03]} Rc8 {[%emt 0:00:15]} 40. Qf1 {[%emt 0:00:23]} Rc7 {[%emt 0:00:10]} 41. a4 {[%emt 0:00:07]} Rxa4 {[%emt 0:00:08]} 42. Kg2 {[%emt 0:00:04]} Re4 {[%emt 0:00:12]} 43. Qf5 {[%emt 0:00:24]} Rxe3 {[%emt 0:00:10]} 44. g5 {[%emt 0:00:01]} hxg5 {[%emt 0:00:09]} 45. hxg5 {[%emt 0:00:01]} Nd4 {[%emt 0:00:19]} 46. Qg4 {[%emt 0:00:27]} Rc2+ {[%emt 0:00:07]} 47. Kf1 {[%emt 0:00:01]} Rb3 {[%emt 0:00:20]} 48. Qd1 {[%emt 0:00:13]} Nf5 {[%emt 0:00:13]} 49. Qd8+ {[%emt 0:00:14]} Kh7 {[%emt 0:00:02]} 50. g6+ {[%emt 0:00:01]} fxg6 {[%emt 0:00:09]} 51. Nd3 {[%emt 0:00:01]} Rb1+ {[%emt 0:00:21]} 52. Ne1 {[%emt 0:00:01]} Ng3+ {[%emt 0:00:12]} 53. Kg1 {[%emt 0:00:02]} Rxe1# {[%emt 0:00:01]} 0-1

[Event "Czech Open Rapid G1 2024"]
[Site "Pardubice"]
[Date "2024.07.17"]
[Round "3.21"]
[White "Kavalir, Jan"]
[Black "Brendel, Oliver"]
[Result "1/2-1/2"]
[Annotator "RC"]
[ECO "B22"]
[WhiteElo "1992"]
[BlackElo "2291"]
[PlyCount "57"]
[EventDate "2024.07.16"]
[EventType "swiss"]
[EventCountry "CZE"]
[SourceTitle "playchess.com"]
[Source "ChessBase"]
[SourceQuality "1"]
[TimeControl "1200+10"]

1. e4 {[%emt 0:00:01]} c5 {[%emt 0:00:03]} 2. c3 {[%emt 0:00:01]} g6 {[%emt 0:00:06]} 3. d4 {[%emt 0:00:03]} cxd4 {[%emt 0:00:03]} 4. cxd4 {[%emt 0:00:02]} d5 {[%emt 0:00:02]} 5. exd5 {[%emt 0:00:02]} Nf6 {[%emt 0:00:02]} 6. Bb5+ {[%emt 0:00:02]} Nbd7 {[%emt 0:00:04]} 7. d6 {[%emt 0:00:06]} exd6 {[%emt 0:00:10]} 8. Qe2+ {[%emt 0:00:13]} Qe7 {[%emt 0:00:35]} 9. Bf4 {[%emt 0:00:14]} Qxe2+ {[%emt 0:00:41]} 10. Nxe2 {[%emt 0:00:02]} Be7 {[%emt 0:03:11]} 11. Nbc3 {[%emt 0:00:46]} O-O {[%emt 0:00:11]} 12. O-O {[%emt 0:00:19]} Nb6 {[%emt 0:00:24]} 13. Bd3 {[%emt 0:00:20]} a6 {[%emt 0:00:36]} 14. h3 {[%emt 0:00:42]} Be6 {[%emt 0:01:44]} 15. Ne4 {[%emt 0:00:45]} Nxe4 {[%emt 0:02:39]} 16. Bxe4 {[%emt 0:00:02]} Bd5 {[%emt 0:02:09]} 17. Nc3 {[%emt 0:00:34]} Bxe4 18. Nxe4 {[%emt 0:00:02]} Rfd8 {[%emt 0:00:23]} 19. Rac1 {[%emt 0:00:32]} Nd5 {[%emt 0:00:04]} 20. Bg3 {[%emt 0:00:26]} f5 {[%emt 0:03:14]} 21. Nc3 {[%emt 0:00:19]} Nb6 {[%emt 0:00:48]} 22. a4 {[%emt 0:00:53]} Bg5 {[%emt 0:01:42]} 23. a5 {[%emt 0:01:37]} Bxc1 {[%emt 0:00:23]} 24. Rxc1 {[%emt 0:00:23]} Nd7 {[%emt 0:02:31]} 25. Nd5 {[%emt 0:01:06]} Kf7 {[%emt 0:00:48]} 26. Rc7 {[%emt 0:02:37]} Rac8 {[%emt 0:00:17]} 27. Rxb7 {[%emt 0:00:35]} Rb8 {[%emt 0:00:11]} 28. Ra7 {[%emt 0:00:25]} Ra8 {[%emt 0:00:29]} 29. Rb7 {[%emt 0:00:25]} 1/2-1/2

[Event "Czech Open Rapid G1 2024"]
[Site "Pardubice"]
[Date "2024.07.17"]
[Round "3.22"]
[White "Ludvik, Tomas"]
[Black "Dostal, Radim"]
[Result "1-0"]
[Annotator "RC"]
[ECO "A61"]
[WhiteElo "2210"]
[BlackElo "1961"]
[PlyCount "65"]
[EventDate "2024.07.16"]
[EventType "swiss"]
[EventCountry "CZE"]
[SourceTitle "playchess.com"]
[Source "ChessBase"]
[SourceQuality "1"]
[TimeControl "1200+10"]

1. d4 {[%emt 0:00:03]} Nf6 {[%emt 0:00:01]} 2. c4 {[%emt 0:00:02]} c5 {[%emt 0:00:00]} 3. d5 {[%emt 0:00:02]} e6 {[%emt 0:00:01]} 4. Nc3 {[%emt 0:00:01]} exd5 {[%emt 0:00:00]} 5. cxd5 {[%emt 0:00:02]} d6 {[%emt 0:00:01]} 6. Nf3 {[%emt 0:00:02]} g6 {[%emt 0:00:00]} 7. Bf4 {[%emt 0:00:01]} Bg7 {[%emt 0:00:14]} 8. Qa4+ {[%emt 0:00:02]} Bd7 {[%emt 0:00:16]} 9. Qb3 {[%emt 0:00:02]} Qc7 {[%emt 0:00:05]} 10. h3 {[%emt 0:00:03]} O-O {[%emt 0:00:49]} 11. e3 {[%emt 0:00:01]} Na6 {[%emt 0:03:45]} 12. Nd2 {[%emt 0:00:10]} Rab8 {[%emt 0:02:32]} 13. Bb5 {[%emt 0:01:57]} Nb4 {[%emt 0:01:12]} 14. Bg3 {[%emt 0:08:28]} Bf5 {[%emt 0:02:52]} 15. e4 {[%emt 0:01:24]} a6 {[%emt 0:02:34]} 16. Be2 {[%emt 0:00:14]} Rfe8 {[%emt 0:01:25]} 17. exf5 {[%emt 0:01:40]} Nh5 {[%emt 0:01:54]} 18. Bh2 {[%emt 0:04:26]} Qe7 {[%emt 0:00:25]} 19. Nce4 {[%emt 0:01:19]} Bh6 {[%emt 0:03:00]} 20. Bf3 {[%emt 0:01:49]} gxf5 {[%emt 0:01:22]} 21. Bxh5 {[%emt 0:01:23]} fxe4 {[%emt 0:00:51]} 22. Nc4 {[%emt 0:00:09]} Nd3+ {[%emt 0:00:02]} 23. Ke2 {[%emt 0:00:26]} Qh4 {[%emt 0:00:03]} 24. g4 {[%emt 0:00:12]} Qxf2+ {[%emt 0:00:02]} 25. Kd1 {[%emt 0:00:00]} Qg2 {[%emt 0:00:33]} 26. Rg1 {[%emt 0:00:20]} Qxh2 {[%emt 0:00:05]} 27. Rf1 {[%emt 0:00:01]} b5 {[%emt 0:00:12]} 28. Bxf7+ {[%emt 0:00:11]} Kf8 {[%emt 0:00:16]} 29. Bxe8+ Kxe8 {[%emt 0:00:01]} 30. Qc3 {[%emt 0:00:24]} bxc4 {[%emt 0:00:21]} 31. Qh8+ {[%emt 0:00:02]} Ke7 {[%emt 0:00:00]} 32. Qxh7+ {[%emt 0:00:02]} Ke8 {[%emt 0:00:08]} 33. Qg8+ {[%emt 0:00:27]} 1-0